bitfinex/quotes_SOLUSD_20241024
["timestamp","ask_amount","ask_price","bid_price","bid_amount"]
[1729796493613,20.08568008,176.03,175.97,17.11753907]
[1729796493813,20.08568008,176.04,175.98,20.08568008]
[1729796494110,44.11354408,176.05,175.99,20.08568008]
[1729796494814,49.79404408,176.05,175.99,20.08568008]
[1729796495419,25.76558008,176.06,176.0,20.08568008]
[1729796495603,22.8273,176.07,176.03,20.08568008]
[1729796495803,16.3316,176.07,176.03,20.08568008]
[1729796497502,20.0,176.1,176.06,20.08568008]
[1729796497705,12.174,176.11,176.07,20.08568008]
[1729796498006,0.12549,176.1,176.06,20.08568008]
[1729796498603,16.3316,176.12,176.08,20.08568008]
[1729796498831,16.3316,176.12,176.09,20.08568008]
[1729796500324,26.58848008,176.15,176.04,80.34272032]
[1729796500325,12.18,176.15,176.11,20.08568008]
[1729796500510,6.5028,176.15,176.11,20.08568008]
[1729796500924,6.5028,176.15,176.12,20.08568008]
[1729796501220,20.08568008,176.19,176.14,20.08568008]
[1729796501732,20.08568008,176.18,176.13,20.08568008]
[1729796501938,20.08568008,176.16,176.06,0.12549]
[1729796502109,20.08568008,176.16,176.11,20.08568008]
[1729796502307,25.76238008,176.16,176.11,20.08568008]
[1729796503832,5.6767,176.16,176.12,20.08568008]
[1729796504326,5.6767,176.16,176.11,20.08568008]
[1729796505928,5.6767,176.16,176.12,20.08568008]
[1729796509334,5.6767,176.16,176.13,20.08568008]
[1729796510835,26.58848008,176.2,176.14,20.08568008]
[1729796511020,23.776884,176.18,176.15,20.08568008]
[1729796513009,22.09881754,176.21,176.17,20.08568008]
[1729796513010,5.90801754,176.21,176.17,20.08568008]
[1729796513218,27.1363,176.28,176.2,20.08568008]
[1729796513431,0.5966702,176.29,176.26,20.08568008]
[1729796513645,0.5966702,176.29,176.27,20.08568008]
[1729796514712,0.5966702,176.29,176.28,20.08568008]
[1729796516534,0.5966702,176.29,176.28,31.27797684]
[1729796520018,0.5966702,176.29,176.25,31.27797684]
[1729796520216,0.5966702,176.29,176.27,31.27797684]
[1729796520640,0.5966702,176.29,176.28,31.27797684]
[1729796521023,0.5966702,176.29,176.27,31.27797684]
[1729796521227,0.5966702,176.29,176.26,31.27797684]
[1729796522518,31.27797684,176.28,176.23,31.27797684]
[1729796522719,31.27797684,176.28,176.24,31.27797684]
[1729796523135,37.54714704,176.29,176.24,31.27797684]
[1729796525632,37.54714704,176.29,176.18,6.0039]
[1729796525633,0.5966702,176.29,176.25,31.27797684]
[1729796526939,6.2690702,176.29,176.25,31.27797684]
[1729796527142,37.54704704,176.29,176.24,31.27797684]
[1729796527525,6.2690702,176.29,176.25,31.27797684]
[1729796528328,37.54704704,176.29,176.24,31.27797684]
[1729796529743,6.2690702,176.29,176.25,31.27797684]
[1729796532843,0.5966702,176.29,176.27,31.27797684]
[1729796533020,0.5966702,176.29,176.28,31.27797684]
[1729796540449,0.5966702,176.29,176.28,20.01607354]
[1729796546150,21.8559,176.37,176.28,20.01607354]
[1729796546151,21.8559,176.37,176.29,0.12549]
[1729796546344,21.8559,176.37,176.36,20.01607354]
[1729796546546,6.6163,176.41,176.36,20.01607354]
[1729796546756,6.6163,176.41,176.39,20.01607354]
[1729796547247,16.3079,176.42,176.4,20.01607354]
[1729796547449,16.3079,176.42,176.41,20.01607354]
[1729796548231,114.8547424,176.45,176.41,20.01607354]
[1729796548434,114.8547424,176.45,176.4,80.06429416]
[1729796548435,114.8547424,176.45,176.44,20.01607354]
[1729796549639,114.8547424,176.45,176.36,0.1]
[1729796549640,6.2965,176.44,176.31,14.85826002]
[1729796549954,16.3428,176.38,176.26,2.446312]
[1729796550134,22.0126,176.38,176.25,6.8296]
[1729796550450,22.0126,176.38,176.26,0.1]
[1729796550633,42.02867354,176.38,176.33,20.01607354]
[1729796551776,16.3428,176.38,176.34,20.01607354]
[1729796552354,16.3428,176.38,176.34,31.27098654]
[1729796552934,16.3428,176.38,176.35,31.27098654]
[1729796553440,16.3428,176.38,176.36,31.27098654]
[1729796553640,16.3428,176.38,176.35,31.27098654]
[1729796553839,36.93978654,176.41,176.36,31.27098654]
[1729796554041,5.6688,176.41,176.37,31.27098654]
[1729796554358,5.6688,176.41,176.36,31.27098654]
[1729796554858,36.93978654,176.41,176.36,31.27098654]
[1729796555066,31.27098654,176.39,176.34,31.27098654]
[1729796555264,6.2965,176.44,176.38,31.27098654]
[1729796555440,6.2965,176.44,176.41,31.27098654]
[1729796555639,6.2965,176.44,176.41,15.63549327]
[1729796555944,6.2965,176.44,176.42,31.27098654]
[1729796557064,6.2965,176.44,176.41,31.27098654]
[1729796557850,6.2965,176.44,176.42,31.27098654]
[1729796558155,129.8793424,176.45,176.42,31.27098654]
[1729796560268,135.5466424,176.45,176.42,31.27098654]
[1729796561870,135.5466424,176.45,176.41,31.27098654]
[1729796562355,129.8793424,176.45,176.41,31.27098654]
[1729796562858,135.5466424,176.45,176.41,31.27098654]
[1729796564869,166.81762894,176.45,176.4,31.27098654]
[1729796565261,135.5466424,176.45,176.4,31.27098654]
[1729796565457,114.8547424,176.45,176.42,31.27098654]
[1729796566371,114.8547424,176.45,176.43,31.27098654]
[1729796566796,114.8547424,176.45,176.42,31.27098654]
[1729796568070,31.27098654,176.44,176.39,31.27098654]
[1729796568265,31.27098654,176.41,176.36,31.27098654]
[1729796569171,31.27098654,176.4,176.35,31.27098654]
[1729796569361,31.27098654,176.4,176.34,31.27098654]
[1729796570080,31.27098654,176.39,176.34,31.27098654]
[1729796570263,36.94018654,176.39,176.34,31.27098654]
[1729796570673,31.27098654,176.38,176.33,31.27098654]
[1729796570854,36.94018654,176.39,176.34,31.27098654]
[1729796575182,36.94018654,176.39,176.33,31.27098654]
[1729796577470,31.27098654,176.4,176.35,31.27098654]
[1729796578269,31.27098654,176.4,176.35,20.01154288]
[1729796578270,20.01154288,176.4,176.35,20.01154288]
[1729796579987,25.68024288,176.41,176.36,20.01154288]
[1729796580187,20.01154288,176.4,176.35,20.01154288]
[1729796587204,20.01154288,176.37,176.28,19.0233]
[1729796587375,5.6689,176.4,176.28,12.4776]
[1729796587376,20.01154288,176.36,176.28,12.4776]
[1729796587696,20.01154288,176.36,176.31,20.01154288]
[1729796589076,25.68144288,176.37,176.32,20.01154288]
[1729796590196,15.67537144,176.38,176.33,20.01154288]
[1729796590401,25.68114288,176.38,176.33,20.01154288]
[1729796590898,15.8904,176.42,176.37,20.01154288]
[1729796591083,15.8904,176.42,176.31,80.04617152]
[1729796591084,26.19924288,176.44,176.4,20.01154288]
[1729796591287,114.8547424,176.45,176.41,20.01154288]
[1729796591493,140.53358528,176.45,176.4,20.01154288]
[1729796592100,140.53358528,176.45,176.34,0.22549]
[1729796592101,20.01154288,176.44,176.39,20.01154288]
[1729796593787,140.53358528,176.45,176.4,20.01154288]
[1729796594904,120.5220424,176.45,176.41,20.01154288]
[1729796596878,140.53358528,176.45,176.4,20.01154288]
[1729796598383,120.5220424,176.45,176.41,20.01154288]
[1729796598903,120.5220424,176.45,176.42,20.01154288]
[1729796599204,114.8547424,176.45,176.44,20.01154288]
[1729796602201,114.8547424,176.45,176.44,44.26489688]
[1729796602505,64.80958436,176.45,176.44,44.26489688]
[1729796604199,64.80958436,176.45,176.44,44.16489688]
[1729796604408,64.80958436,176.45,176.44,44.26489688]
[1729796607102,64.80958436,176.45,176.44,44.03940688]
[1729796607405,64.80958436,176.45,176.4,40.02308576]
[1729796607708,64.80958436,176.45,176.38,12.4776]
[1729796607709,64.80958436,176.45,176.43,20.01154288]
[1729796608284,64.80958436,176.45,176.44,20.01154288]
[1729796609088,64.80958436,176.45,176.43,20.01154288]
[1729796609292,90.48852724,176.45,176.35,0.1]
[1729796609494,90.48852724,176.45,176.4,20.01154288]
[1729796610309,101.72332584,176.45,176.4,31.24634148]
[1729796610605,31.24634148,176.43,176.38,31.24634148]
[1729796610810,31.24634148,176.41,176.36,31.24634148]
[1729796611999,31.24634148,176.42,176.37,31.24634148]
[1729796612302,36.91454148,176.43,176.37,31.24634148]
[1729796612699,36.91454148,176.43,176.38,31.24634148]
[1729796613602,36.91454148,176.43,176.37,31.24634148]
[1729796614324,31.24634148,176.42,176.37,31.24634148]
[1729796621826,31.24634148,176.41,176.37,31.24634148]
[1729796622810,31.24634148,176.41,176.36,31.24634148]
[1729796625797,31.24634148,176.42,176.37,31.24634148]
[1729796627419,31.24634148,176.41,176.37,31.24634148]
[1729796628315,31.24634148,176.42,176.38,31.24634148]
[1729796628508,31.24634148,176.42,176.37,31.24634148]
[1729796629811,31.24634148,176.41,176.37,31.24634148]
[1729796630199,64.80958436,176.45,176.4,31.24634148]
[1729796630406,64.80958436,176.45,176.41,31.24634148]
[1729796631002,101.72322584,176.45,176.4,31.24634148]
[1729796631502,31.24634148,176.42,176.38,31.37183148]
[1729796631918,31.24634148,176.43,176.38,31.37183148]
[1729796632419,20.00294218,176.43,176.38,20.12843218]
[1729796634020,20.00294218,176.43,176.34,0.1]
[1729796634021,5.668,176.43,176.34,0.1]
[1729796634213,20.00294218,176.41,176.37,0.12549]
[1729796634524,20.00294218,176.4,176.36,20.00294218]
[1729796635604,20.00294218,176.41,176.36,20.00294218]
[1729796638206,20.00294218,176.4,176.33,0.35098]
[1729796638403,20.00294218,176.4,176.36,20.00294218]
[1729796638609,20.00294218,176.41,176.36,20.00294218]
[1729796638807,20.00294218,176.4,176.36,0.12549]
[1729796641225,20.00294218,176.41,176.36,20.12843218]
[1729796642133,36.13354218,176.42,176.37,20.00294218]
[1729796643217,41.80184218,176.42,176.37,20.00294218]
[1729796643424,21.7989,176.42,176.38,20.00294218]
[1729796643735,41.80184218,176.42,176.37,20.00294218]
[1729796644324,20.00294218,176.41,176.36,20.12843218]
[1729796645923,20.00294218,176.41,176.36,0.12549]
[1729796646117,20.00294218,176.4,176.35,20.00294218]
[1729796646316,20.00294218,176.39,176.35,20.00294218]
[1729796648234,5.6687,176.41,176.35,20.00294218]
[1729796648235,20.00294218,176.4,176.35,20.00294218]
[1729796649540,20.00294218,176.4,176.33,0.12549]
[1729796649718,20.00294218,176.4,176.35,20.00294218]
[1729796653033,16.1306,176.42,176.35,20.00294218]
[1729796653233,21.7988,176.42,176.37,20.00294218]
[1729796653622,20.00294218,176.41,176.36,20.00294218]
[1729796654138,20.00294218,176.4,176.36,20.00294218]
[1729796654635,20.00294218,176.41,176.36,20.00294218]
[1729796656914,20.00294218,176.41,176.37,20.00294218]
[1729796659347,64.80958436,176.45,176.4,20.00294218]
[1729796659632,64.80958436,176.45,176.42,20.00294218]
[1729796661030,64.80958436,176.45,176.43,20.00294218]
[1729796661541,64.80958436,176.45,176.42,20.00294218]
[1729796664246,64.80958436,176.45,176.36,2.47949659]
[1729796664542,64.80958436,176.45,176.43,20.00294218]
[1729796671044,64.80958436,176.45,176.44,20.00294218]
[1729796680927,64.80958436,176.45,176.43,20.00294218]
[1729796684841,64.80958436,176.45,176.44,20.00294218]
[1729796690650,64.80958436,176.45,176.43,20.00294218]
[1729796691824,64.80958436,176.45,176.44,20.00294218]
[1729796698057,64.80958436,176.45,176.44,20.00294218]
[1729796701239,90.47982654,176.45,176.35,12.4776]
[1729796701566,20.00294218,176.42,176.37,20.00294218]
[1729796701944,6.5759,176.44,176.32,0.22549]
[1729796701945,20.00294218,176.41,176.32,0.22549]
[1729796702261,20.00294218,176.41,176.37,20.00294218]
[1729796702754,20.00294218,176.4,176.31,12.4776]
[1729796702940,20.00294218,176.4,176.35,20.00294218]
[1729796703561,20.00294218,176.4,176.31,14.93351135]
[1729796703862,40.70044218,176.41,176.36,20.00294218]
[1729796705263,20.6975,176.41,176.37,20.00294218]
[1729796705559,20.6975,176.41,176.37,10.00147109]
[1729796706255,20.6975,176.41,176.37,20.00294218]
[1729796707246,40.70044218,176.41,176.36,20.00294218]
[1729796708838,15.0286,176.41,176.39,20.00294218]
[1729796709039,15.0286,176.41,176.38,20.00294218]
[1729796709260,64.80958436,176.45,176.4,20.00294218]
[1729796709449,64.80958436,176.45,176.42,20.00294218]
[1729796709652,64.80958436,176.45,176.43,20.00294218]
[1729796710645,64.80958436,176.45,176.37,0.1]
[1729796710959,64.80958436,176.45,176.43,20.00294218]
[1729796711163,64.80958436,176.45,176.38,0.25098]
[1729796711664,64.80958436,176.45,176.41,20.00294218]
[1729796712252,64.80958436,176.45,176.42,20.00294218]
[1729796716573,64.80958436,176.45,176.41,20.00294218]
[1729796718763,64.80958436,176.45,176.42,20.00294218]
[1729796720562,20.00294218,176.43,176.34,23.776884]
[1729796720763,20.00294218,176.43,176.39,20.00294218]
[1729796720971,20.00294218,176.43,176.38,20.00294218]
[1729796721858,20.00294218,176.43,176.39,20.00294218]
[1729796722265,25.67084218,176.44,176.39,20.00294218]
[1729796723987,20.00294218,176.43,176.39,20.00294218]
[1729796724278,20.00294218,176.43,176.38,20.00294218]
[1729796725061,25.67094218,176.43,176.38,20.00294218]
[1729796730274,20.00294218,176.42,176.35,0.25098]
[1729796730475,20.00294218,176.42,176.37,20.00294218]
[1729796730964,20.00294218,176.42,176.38,20.00294218]
[1729796731465,5.668,176.43,176.39,20.00294218]
[1729796731887,64.80958436,176.45,176.41,20.00294218]
[1729796732089,70.47708436,176.45,176.42,20.00294218]
[1729796732385,64.80958436,176.45,176.43,20.00294218]
[1729796732564,64.80958436,176.45,176.44,20.00294218]
[1729796733797,64.80958436,176.45,176.44,44.03080618]
[1729796739496,64.80958436,176.45,176.44,0.25098]
[1729796739786,64.80958436,176.45,176.24,32.08738755]
[1729796739787,64.80958436,176.45,176.41,0.1]
[1729796740086,64.80958436,176.45,176.44,20.00294218]
[1729796740979,64.80958436,176.45,176.44,20.12843218]
[1729796751076,64.80958436,176.45,176.44,20.25392218]
[1729796752381,64.80958436,176.45,176.44,44.15629618]
[1729796752589,64.80958436,176.45,176.44,44.25629618]
[1729796761486,64.80958436,176.45,176.44,24.027864]
[1729796761795,64.80958436,176.45,176.44,20.25392218]
[1729796761994,64.80958436,176.45,176.44,44.03080618]
[1729796762482,14.76442632,176.45,176.44,44.25629618]
[1729796763509,14.76442632,176.45,176.44,24.253354]
[1729796763796,14.76442632,176.45,176.44,44.25629618]
[1729796764182,1.5815629,176.64,176.52,0.1]
[1729796764383,1.5815629,176.64,176.61,20.00294218]
[1729796764384,6.2579702,176.64,176.61,20.00294218]
[1729796764579,0.5966702,176.64,176.61,20.00294218]
[1729796765195,0.5966702,176.64,176.62,20.00294218]
[1729796765581,0.5966702,176.64,176.6,20.00294218]
[1729796765786,20.00294218,176.63,176.53,0.1]
[1729796765992,20.00294218,176.58,176.51,0.25098]
[1729796766183,20.00294218,176.58,176.53,20.00294218]
[1729796767193,15.1206,176.57,176.53,20.00294218]
[1729796767394,20.00294218,176.56,176.51,20.00294218]
[1729796767582,20.00294218,176.55,176.5,20.00294218]
[1729796768200,20.00294218,176.55,176.46,0.1]
[1729796768483,20.00294218,176.55,176.5,20.00294218]
[1729796769303,25.66674218,176.56,176.51,20.00294218]
[1729796769890,5.6638,176.56,176.52,20.00294218]
[1729796770807,25.66674218,176.56,176.51,20.00294218]
[1729796771805,25.66674218,176.56,176.5,20.00294218]
[1729796772391,5.6638,176.56,176.5,20.00294218]
[1729796772688,25.66674218,176.56,176.5,20.00294218]
[1729796773989,40.78704218,176.57,176.52,20.00294218]
[1729796775412,35.12354218,176.57,176.52,20.00294218]
[1729796775708,40.78694218,176.57,176.52,20.00294218]
[1729796775882,20.00294218,176.56,176.51,20.00294218]
[1729796776301,20.00294218,176.54,176.49,20.00294218]
[1729796777010,20.00294218,176.52,176.47,20.00294218]
[1729796778710,20.00294218,176.53,176.48,20.00294218]
[1729796780104,20.00294218,176.53,176.49,20.00294218]
[1729796781395,25.66744218,176.54,176.49,20.00294218]
[1729796785705,20.00294218,176.54,176.49,20.00294218]
[1729796787101,15.1206,176.57,176.5,10.00147109]
[1729796787311,15.1206,176.57,176.53,20.00294218]
[1729796789313,35.12354218,176.57,176.53,20.00294218]
[1729796790920,15.1206,176.57,176.54,20.00294218]
[1729796793735,22.3107,176.63,176.55,20.00294218]
[1729796794021,20.00294218,176.62,176.57,20.00294218]
[1729796794223,20.00294218,176.61,176.57,20.00294218]
[1729796796422,25.66524218,176.61,176.57,20.00294218]
[1729796798325,25.66474218,176.62,176.57,20.00294218]
[1729796800117,0.5966702,176.64,176.61,20.00294218]
[1729796800317,0.5966702,176.64,176.63,20.00294218]
[1729796801015,0.5966702,176.64,176.62,20.00294218]
[1729796801203,0.5966702,176.64,176.58,80.01176872]
[1729796801204,0.5966702,176.64,176.63,20.25392218]
[1729796808221,0.5966702,176.64,176.63,40.35392218]
[1729796808427,15.2605,176.73,176.65,0.25098]
[1729796808724,15.2605,176.73,176.7,20.00294218]
[1729796810427,15.2605,176.73,176.63,0.1]
[1729796810428,20.00294218,176.71,176.63,10.00147109]
[1729796810609,20.00294218,176.67,176.62,20.00294218]
[1729796811334,20.00294218,176.67,176.63,20.00294218]
[1729796811507,20.00294218,176.68,176.63,20.00294218]
[1729796811709,20.00294218,176.67,176.62,20.00294218]
[1729796811917,20.00294218,176.67,176.58,80.01176872]
[1729796811918,10.00147109,176.64,176.55,6.5665]
[1729796812125,20.00294218,176.62,176.57,20.00294218]
[1729796812330,20.00294218,176.61,176.56,20.00294218]
[1729796812634,20.00294218,176.6,176.56,20.00294218]
[1729796813508,20.00294218,176.61,176.56,20.00294218]
[1729796814423,31.19071884,176.61,176.56,31.19071884]
[1729796815734,31.19071884,176.61,176.57,31.19071884]
[1729796815934,31.19071884,176.63,176.58,31.19071884]
[1729796816129,31.19071884,176.65,176.6,31.19071884]
[1729796819319,31.19071884,176.64,176.59,31.19071884]
[1729796819836,31.19071884,176.65,176.6,31.19071884]
[1729796821835,15.0403,176.66,176.63,31.19071884]
[1729796823227,31.19071884,176.69,176.64,31.19071884]
[1729796823426,36.85011884,176.7,176.65,31.19071884]
[1729796823634,16.1897,176.71,176.66,31.19071884]
[1729796823930,16.1897,176.71,176.67,31.19071884]
[1729796824812,16.1897,176.71,176.68,31.19071884]
[1729796825521,16.1897,176.71,176.67,31.19071884]
[1729796826334,16.1897,176.71,176.61,0.1]
[1729796826335,16.1897,176.71,176.68,31.19071884]
[1729796829936,16.3375,176.75,176.7,31.19071884]
[1729796830238,21.9953,176.75,176.72,31.19071884]
[1729796830432,16.3375,176.75,176.73,31.19071884]
[1729796830738,16.3375,176.75,176.71,31.19071884]
[1729796830935,47.52821884,176.75,176.7,31.19071884]
[1729796831234,47.52821884,176.75,176.71,31.19071884]
[1729796831933,31.19071884,176.74,176.66,0.12549]
[1729796832139,31.19071884,176.74,176.69,31.19071884]
[1729796832434,31.19071884,176.74,176.7,31.19071884]
[1729796834727,47.52821884,176.75,176.7,31.19071884]
[1729796835543,16.3375,176.75,176.71,31.19071884]
[1729796836338,16.3375,176.75,176.71,19.92841926]
[1729796837147,16.3375,176.75,176.7,19.92841926]
[1729796837443,36.26591926,176.75,176.7,19.92841926]
[1729796838119,19.92841926,176.72,176.64,21.4852]
[1729796838324,19.92841926,176.71,176.66,19.92841926]
[1729796838732,19.92841926,176.71,176.67,19.92841926]
[1729796839623,19.92841926,176.71,176.6,21.8203]
[1729796839826,19.92841926,176.71,176.66,19.92841926]
[1729796843345,25.58701926,176.72,176.67,19.92841926]
[1729796843830,19.92841926,176.71,176.66,19.92841926]
[1729796844328,19.92841926,176.7,176.57,0.2]
[1729796844640,19.92841926,176.67,176.62,19.92841926]
[1729796844838,19.92841926,176.68,176.63,19.92841926]
[1729796845430,14.1471,176.72,176.63,19.92841926]
[1729796845633,19.92841926,176.68,176.63,19.92841926]
[1729796846923,25.58841926,176.68,176.63,19.92841926]
[1729796847223,19.92841926,176.67,176.63,19.92841926]
[1729796847436,19.92841926,176.64,176.58,19.92841926]
[1729796847629,19.92841926,176.63,176.58,19.92841926]
[1729796848643,79.71367704,176.67,176.53,8.50064609]
[1729796848644,25.6602,176.67,176.57,19.92841926]
[1729796848846,19.92841926,176.62,176.57,19.92841926]
[1729796849139,19.92841926,176.62,176.58,19.92841926]
[1729796849549,19.92841926,176.62,176.57,19.92841926]
[1729796849926,9.96420963,176.61,176.56,19.92841926]
[1729796850239,19.92841926,176.61,176.56,19.92841926]
[1729796851626,5.6619,176.62,176.55,19.92841926]
[1729796851844,19.92841926,176.6,176.55,19.92841926]
[1729796852154,5.6619,176.62,176.55,19.92841926]
[1729796852332,19.92841926,176.61,176.56,19.92841926]
[1729796853431,15.9985,176.68,176.6,19.92841926]
[1729796853636,19.92841926,176.66,176.61,19.92841926]
[1729796853834,19.92841926,176.67,176.62,19.92841926]
[1729796854055,41.58691926,176.68,176.63,19.92841926]
[1729796854243,31.62270963,176.68,176.63,31.16458068]
[1729796854428,47.16308068,176.68,176.63,31.16458068]
[1729796855047,52.82298068,176.68,176.63,31.16458068]
[1729796855648,31.16458068,176.67,176.63,31.16458068]
[1729796856753,47.16308068,176.68,176.63,31.16458068]
[1729796856952,15.9985,176.68,176.65,31.16458068]
[1729796857248,31.16458068,176.71,176.66,31.16458068]
[1729796857636,53.48908068,176.72,176.67,31.16458068]
[1729796858738,47.83038068,176.72,176.67,31.16458068]
[1729796859051,16.6658,176.72,176.68,31.16458068]
[1729796859256,47.83038068,176.72,176.68,31.16458068]
[1729796860133,47.83038068,176.72,176.67,31.16458068]
[1729796860337,47.83038068,176.72,176.68,31.16458068]
[1729796860656,16.6658,176.72,176.68,31.16458068]
[1729796863062,16.6658,176.72,176.69,31.16458068]
[1729796863450,31.16458068,176.74,176.69,31.16458068]
[1729796864148,5.6577,176.75,176.69,31.16458068]
[1729796864342,47.774369,176.76,176.71,31.16458068]
[1729796865264,31.16458068,176.73,176.68,31.16458068]
[1729796866665,31.16458068,176.72,176.68,31.16458068]
[1729796867164,31.16458068,176.72,176.67,31.16458068]
[1729796867556,31.16458068,176.72,176.68,31.16458068]
[1729796867737,31.11795813,176.72,176.68,31.16458068]
[1729796868155,31.11795813,176.72,176.64,6.51819]
[1729796868156,31.11795813,176.72,176.67,31.16458068]
[1729796871063,31.05255731,176.72,176.67,31.16458068]
[1729796871266,31.16458068,176.71,176.66,31.16458068]
[1729796871969,31.16458068,176.74,176.69,31.16458068]
[1729796874065,5.6577,176.75,176.69,31.16458068]
[1729796874267,31.16458068,176.74,176.69,31.16458068]
[1729796874770,36.82288068,176.74,176.69,31.16458068]
[1729796875160,36.766869,176.74,176.69,15.58229034]
[1729796875361,36.766869,176.74,176.69,31.16458068]
[1729796875872,31.108569,176.74,176.69,31.16458068]
[1729796876266,19.93254552,176.74,176.69,19.93254552]
[1729796876868,25.59024552,176.75,176.7,19.93254552]
[1729796877256,5.6577,176.75,176.7,19.93254552]
[1729796877574,19.93254552,176.74,176.69,19.93254552]
[1729796886273,19.93254552,176.73,176.68,19.93254552]
[1729796886872,25.59054552,176.74,176.69,19.93254552]
[1729796888674,19.93254552,176.73,176.68,19.93254552]
[1729796896664,5.658,176.74,176.61,15.4258]
[1729796896665,19.93254552,176.7,176.61,15.4258]
[1729796896966,19.93254552,176.69,176.64,19.93254552]
[1729796898178,19.93254552,176.68,176.63,19.93254552]
[1729796899879,19.93254552,176.68,176.62,19.93254552]
[1729796900582,5.6597,176.69,176.62,19.93254552]
[1729796900583,19.93254552,176.67,176.62,19.93254552]
[1729796900760,19.93254552,176.68,176.63,19.93254552]
[1729796903780,19.93254552,176.67,176.63,19.93254552]
[1729796904079,19.93254552,176.72,176.66,19.93254552]
[1729796904284,19.93254552,176.72,176.68,19.93254552]
[1729796905172,16.5234,176.79,176.71,19.93254552]
[1729796905487,19.93254552,176.78,176.74,19.93254552]
[1729796905691,19.93254552,176.78,176.73,19.93254552]
[1729796905873,19.93254552,176.78,176.69,0.12549]
[1729796905874,19.93254552,176.77,176.72,19.93254552]
[1729796906563,19.93254552,176.77,176.73,19.93254552]
[1729796907070,19.93254552,176.77,176.72,19.93254552]
[1729796907270,19.93254552,176.76,176.72,19.93254552]
[1729796908370,19.93254552,176.76,176.71,19.93254552]
[1729796908668,5.6568,176.78,176.64,21.6503]
[1729796908669,19.93254552,176.74,176.64,21.6503]
[1729796908875,5.6567,176.78,176.64,21.5503]
[1729796909071,19.93254552,176.71,176.66,19.93254552]
[1729796909381,19.93254552,176.72,176.67,19.93254552]
[1729796910268,19.93254552,176.71,176.67,19.93254552]
[1729796911275,19.93254552,176.72,176.67,19.93254552]
[1729796920493,19.93254552,176.72,176.68,19.93254552]
[1729796924889,19.93254552,176.73,176.68,19.93254552]
[1729796928395,14.1418,176.78,176.68,19.93254552]
[1729796928584,19.7985,176.78,176.68,19.93254552]
[1729796929282,19.93254552,176.73,176.68,19.93254552]
[1729796929796,5.657,176.77,176.68,19.93254552]
[1729796930003,19.93254552,176.73,176.68,19.93254552]
[1729796931300,5.657,176.77,176.68,19.93254552]
[1729796931505,19.93254552,176.73,176.68,19.93254552]
[1729796942403,19.93254552,176.73,176.65,24.027864]
[1729796942607,19.93254552,176.73,176.68,19.93254552]
[1729796944801,19.93254552,176.71,176.65,24.027864]
[1729796945007,19.93254552,176.7,176.65,43.96040952]
[1729796945485,19.93254552,176.71,176.66,19.93254552]
[1729796946213,22.0585,176.73,176.67,19.93254552]
[1729796946409,19.93254552,176.71,176.67,19.93254552]
[1729796948389,19.93254552,176.71,176.66,19.93254552]
[1729796949598,19.93254552,176.67,176.6,15.3258]
[1729796949789,19.93254552,176.67,176.62,19.93254552]
[1729796951307,19.93254552,176.66,176.59,0.12549]
[1729796951501,5.6604,176.67,176.56,21.4048]
[1729796951502,19.93254552,176.64,176.56,21.4048]
[1729796951699,19.93254552,176.64,176.59,19.93254552]
[1729796952018,19.93254552,176.65,176.6,19.93254552]
[1729796953413,25.59354552,176.65,176.6,19.93254552]
[1729796953913,19.93254552,176.64,176.59,19.93254552]
[1729796955911,25.59354552,176.65,176.6,19.93254552]
[1729796956489,6.0377,176.69,176.64,19.93254552]
[1729796956702,41.06514552,176.71,176.66,19.93254552]
[1729796957501,19.93254552,176.67,176.62,19.93254552]
[1729796957709,21.1326,176.71,176.61,19.93254552]
[1729796957908,19.93254552,176.65,176.6,19.93254552]
[1729796958118,15.8472,176.64,176.54,19.93254552]
[1729796958414,9.96627276,176.59,176.54,19.93254552]
[1729796958622,19.93254552,176.62,176.57,19.93254552]
[1729796958790,25.59404552,176.63,176.58,19.93254552]
[1729796959217,25.59404552,176.63,176.57,19.93254552]
[1729796961200,19.93254552,176.61,176.56,19.93254552]
[1729796964540,5.6618,176.62,176.51,0.1]
[1729796964541,19.93254552,176.59,176.52,0.25098]
[1729796964696,19.93254552,176.59,176.54,19.93254552]
[1729796971321,19.93254552,176.6,176.55,19.93254552]
[1729796971815,25.59504552,176.6,176.55,19.93254552]
[1729796972129,19.93254552,176.59,176.54,19.93254552]
[1729796973624,25.59554552,176.59,176.54,19.93254552]
[1729796973821,19.93254552,176.58,176.53,19.93254552]
[1729796974408,19.93254552,176.58,176.52,20.18352552]
[1729796974613,19.93254552,176.57,176.52,19.93254552]
[1729796979510,19.93254552,176.57,176.53,19.93254552]
[1729796979812,25.59614552,176.57,176.52,19.93254552]
[1729796983131,0.6,176.53,176.52,19.93254552]
[1729796984633,0.6,176.53,176.51,19.93254552]
[1729796985134,0.6,176.53,176.52,19.93254552]
[1729796985538,0.6,176.53,176.51,19.93254552]
[1729796988219,20.53254552,176.53,176.49,19.93254552]
[1729796988836,0.6,176.53,176.49,19.93254552]